bitfinex/quotes_SOLUSD_20241231
["timestamp","ask_amount","ask_price","bid_price","bid_amount"]
[1735657214940,23.776884,197.82,197.73,9.84154014]
[1735657215156,1.5021,197.83,197.74,9.84154014]
[1735657215625,23.776884,197.82,197.73,9.84154014]
[1735657215825,23.776884,197.82,197.72,9.84154014]
[1735657216024,23.776884,197.82,197.71,29.84154014]
[1735657216948,23.776884,197.82,197.71,9.84154014]
[1735657217150,23.776884,197.82,197.72,147.44154014]
[1735657217949,20.0,197.79,197.72,137.6]
[1735657218155,20.0,197.79,197.72,147.44154014]
[1735657219155,1.5021,197.83,197.75,9.84154014]
[1735657219357,1.5021,197.83,197.77,9.84154014]
[1735657219725,1.5021,197.83,197.76,147.44154014]
[1735657220060,1.5021,197.83,197.77,9.84154014]
[1735657220426,1.5021,197.83,197.76,137.6]
[1735657221374,1.5021,197.83,197.76,147.44154014]
[1735657223257,1.5021,197.83,197.77,9.84154014]
[1735657223636,1.5021,197.83,197.77,147.44154014]
[1735657224359,1.5021,197.83,197.77,137.6]
[1735657227336,20.0,197.79,197.72,137.6]
[1735657227537,20.0,197.79,197.7,137.6]
[1735657227871,1.5021,197.83,197.73,147.44154014]
[1735657228069,1.5021,197.83,197.73,137.6]
[1735657228238,20.0,197.79,197.69,9.84154014]
[1735657228438,20.0,197.79,197.7,9.84154014]
[1735657228866,20.0,197.75,197.67,144.0702]
[1735657229239,20.0,197.75,197.68,9.84154014]
[1735657229753,20.0,197.75,197.68,147.44154014]
[1735657230062,23.776884,197.79,197.69,147.44154014]
[1735657230366,20.0,197.76,197.69,137.6]
[1735657230945,20.0,197.76,197.69,152.98369382]
[1735657233760,24.6559,197.8,197.69,152.98369382]
[1735657233966,24.6559,197.8,197.71,15.38369382]
[1735657234177,24.6559,197.8,197.71,152.98369382]
[1735657234745,1.5021,197.83,197.76,15.38369382]
[1735657235164,20.0,197.82,197.76,15.38369382]
[1735657235755,1.5021,197.83,197.76,15.38369382]
[1735657236844,1.5021,197.83,197.77,152.98369382]
[1735657237463,1.5021,197.83,197.77,137.6]
[1735657237664,1.5083,197.89,197.79,15.38369382]
[1735657238069,20.0,197.87,197.79,15.38369382]
[1735657238370,1.5083,197.89,197.83,15.38369382]
[1735657238555,7.93000657,197.92,197.86,152.98369382]
[1735657238945,7.93000657,197.92,197.87,15.38369382]
[1735657239146,7.93000657,197.92,197.88,15.38369382]
[1735657239668,21.5083,197.94,197.88,15.38369382]
[1735657239848,21.5083,197.94,197.88,152.98369382]
[1735657240343,21.5083,197.94,197.88,137.6]
[1735657240549,1.5083,197.94,197.88,137.6]
[1735657240751,7.93000657,198.0,197.93,15.38369382]
[1735657240752,9.43830657,198.0,197.93,15.38369382]
[1735657240962,7.93000657,198.0,197.94,15.38369382]
[1735657241164,7.93000657,198.05,197.96,152.98369382]
[1735657241474,7.93000657,198.05,198.01,15.38369382]
[1735657241677,7.93000657,198.05,198.0,152.98369382]
[1735657241968,7.93000657,198.05,198.0,137.6]
[1735657242168,7.93000657,198.05,197.97,137.6]
[1735657242374,21.5083,198.02,197.93,137.6]
[1735657242670,23.776884,198.0,197.93,137.6]
[1735657242869,20.0,197.98,197.91,15.38369382]
[1735657243863,20.0,197.98,197.92,15.38369382]
[1735657244062,20.0,198.01,197.93,15.38369382]
[1735657244266,20.0,198.01,197.91,15.38369382]
[1735657244580,23.776884,198.0,197.89,152.98369382]
[1735657244753,20.0,197.97,197.89,152.98369382]
[1735657244950,23.776884,197.96,197.87,137.6]
[1735657245273,20.0,197.93,197.87,137.6]
[1735657245578,20.0,197.93,197.87,152.98369382]
[1735657246263,1.5083,198.02,197.88,15.38369382]
[1735657246573,1.5083,198.02,197.92,15.38369382]
[1735657246967,1.5083,198.02,197.91,137.6]
[1735657246968,1.5083,198.02,197.94,15.38369382]
[1735657247171,7.93000657,198.13,197.96,152.98369382]
[1735657247172,1.5083,198.07,197.96,152.98369382]
[1735657247366,1.5083,198.07,197.97,15.38369382]
[1735657247566,20.0,198.06,197.97,15.38369382]
[1735657247767,1.5083,198.07,197.97,15.38369382]
[1735657248172,20.0,198.06,197.96,152.98369382]
[1735657248483,23.776884,198.05,197.96,137.6]
[1735657248668,20.0,198.02,197.96,137.6]
[1735657249081,23.776884,198.01,197.96,137.6]
[1735657249252,23.776884,198.01,197.89,15.38369382]
[1735657249253,20.0,197.98,197.89,15.38369382]
[1735657249661,20.0,197.98,197.89,137.6]
[1735657250557,20.0,197.98,197.89,152.98369382]
[1735657251162,20.0,197.98,197.91,152.98369382]
[1735657251365,20.0,197.98,197.91,137.6]
[1735657251966,1.5083,198.07,197.92,15.38369382]
[1735657252164,1.5083,198.07,197.93,137.6]
[1735657252376,1.5083,198.07,197.92,12.6313]
[1735657252377,1.5083,198.07,197.96,15.38369382]
[1735657252593,20.0,198.06,197.96,15.38369382]
[1735657252883,20.0,198.06,197.95,152.98369382]
[1735657253262,20.0,198.02,197.95,137.6]
[1735657253781,1.5083,198.07,197.95,137.6]
[1735657253969,20.0,198.06,197.95,137.6]
[1735657255466,20.0,198.06,197.96,15.38369382]
[1735657255790,1.5083,198.07,197.99,152.98369382]
[1735657255963,1.5083,198.07,197.99,137.6]
[1735657256162,20.0,198.02,197.94,137.6]
[1735657256497,20.0,198.02,197.95,15.38369382]
[1735657256704,20.0,198.02,197.95,152.98369382]
[1735657256866,1.5083,198.07,197.95,152.98369382]
[1735657256867,1.5083,198.07,197.97,15.38369382]
[1735657257074,1.5083,198.07,197.99,15.38369382]
[1735657257366,6.2465,198.18,198.01,15.38369382]
[1735657257572,6.2465,198.18,198.02,15.38369382]
[1735657257785,20.0,198.15,198.02,152.98369382]
[1735657257984,6.2465,198.18,198.02,152.98369382]
[1735657258186,6.2465,198.18,198.03,15.38369382]
[1735657258682,43.776884,198.14,198.03,15.38369382]
[1735657258861,23.776884,198.14,198.03,15.38369382]
[1735657259058,6.2465,198.18,198.02,137.6]
[1735657259274,6.2465,198.18,198.02,152.98369382]
[1735657259479,43.776884,198.14,198.02,152.98369382]
[1735657259792,23.776884,198.14,198.02,152.98369382]
[1735657260079,20.0,198.12,197.97,143.767]
[1735657260282,20.0,198.08,197.97,137.6]
[1735657260585,20.0,198.08,197.98,15.38369382]
[1735657260780,1.5906,198.1,197.99,15.38369382]
[1735657260977,1.5906,198.1,197.98,15.38369382]
[1735657261178,23.776884,198.09,197.98,15.38369382]
[1735657261366,1.5906,198.1,198.0,15.38369382]
[1735657261985,1.5906,198.1,197.99,15.38369382]
[1735657262386,1.5906,198.1,198.02,15.38369382]
[1735657262584,1.5906,198.17,198.03,15.38369382]
[1735657262811,1.5906,198.17,198.03,152.98369382]
[1735657263088,20.0,198.15,198.04,15.38369382]
[1735657263289,20.0,198.15,198.03,152.98369382]
[1735657263478,20.0,198.13,198.03,152.98369382]
[1735657264186,20.0,198.13,198.03,137.6]
[1735657264867,20.0,198.13,198.03,152.98369382]
[1735657265268,20.0,198.13,198.03,137.6]
[1735657265776,20.0,198.09,198.01,137.6]
[1735657266191,43.776884,198.13,197.98,152.98369382]
[1735657266693,1.5906,198.12,197.98,137.6]
[1735657267105,4.6559,198.11,197.98,137.6]
[1735657267308,23.776884,198.06,197.96,137.6]
[1735657267603,21.5906,198.03,197.96,137.6]
[1735657268573,20.0,197.99,197.91,137.6]
[1735657268805,23.776884,197.98,197.89,137.6]
[1735657269371,4.6559,198.01,197.91,15.38369382]
[1735657269568,1.5906,198.03,197.93,15.38369382]
[1735657269791,1.5906,198.03,197.94,15.38369382]
[1735657270004,21.5906,198.03,197.94,152.98369382]
[1735657270482,21.5906,198.03,197.95,24.54916187]
[1735657271305,4.6559,198.06,197.96,162.14916187]
[1735657271592,1.5443,198.14,198.01,24.54916187]
[1735657271775,1.5443,198.14,198.01,162.14916187]
[1735657271976,20.0,198.12,198.01,162.14916187]
[1735657272180,20.0,198.12,198.03,24.54916187]
[1735657272387,1.5443,198.14,198.04,162.14916187]
[1735657272587,1.5443,198.14,198.04,137.6]
[1735657272878,20.0,198.12,198.04,137.6]
[1735657273277,23.776884,198.13,198.04,137.6]
[1735657273474,20.0,198.1,198.04,137.6]
[1735657277674,20.0,198.1,198.02,24.54916187]
[1735657277879,20.0,198.1,198.01,24.54916187]
[1735657278380,20.0,198.12,198.02,24.54916187]
[1735657278592,20.0,198.12,198.03,24.54916187]
[1735657278803,20.0,198.12,198.02,24.54916187]
[1735657279707,20.0,198.12,198.01,174.77456187]
[1735657281075,20.0,198.08,198.01,137.6]
[1735657281485,20.0,198.12,198.01,162.14916187]
[1735657282108,20.0,198.12,198.02,24.54916187]
[1735657282289,20.0,198.12,198.03,24.54916187]
[1735657282485,1.5443,198.14,198.04,162.14916187]
[1735657282700,1.5443,198.14,198.05,162.14916187]
[1735657283104,1.5443,198.14,198.05,137.6]
[1735657283786,1.5443,198.14,198.05,162.14916187]
[1735657284289,20.0,198.17,198.06,168.36106187]
[1735657285109,20.0,198.17,198.07,24.54916187]
[1735657285320,20.0,198.17,198.09,162.14916187]
[1735657286213,20.0,198.17,198.09,137.6]
[1735657286905,20.0,198.17,198.09,162.14916187]
[1735657287306,20.0,198.17,198.09,137.6]
[1735657292913,20.0,198.17,198.06,152.92454524]
[1735657293113,23.776884,198.16,198.06,137.6]
[1735657293418,20.0,198.13,198.06,137.6]
[1735657294209,20.0,198.13,198.02,150.2248]
[1735657294407,20.0,198.13,198.02,165.54934524]
[1735657295111,20.0,198.13,198.04,27.94824524]
[1735657295287,20.0,198.13,198.05,15.32454524]
[1735657295491,6.2312,198.2,198.05,15.32454524]
[1735657295692,6.2312,198.2,198.06,152.92454524]
[1735657295899,6.2312,198.2,198.06,137.6]
[1735657295900,20.0,198.16,198.06,137.6]
[1735657297703,20.0,198.16,198.06,152.92454524]
[1735657298014,20.0,198.16,198.07,15.32454524]
[1735657298187,20.0,198.16,198.07,152.92454524]
[1735657298392,20.0,198.16,198.07,137.6]
[1735657303394,20.0,198.12,198.03,152.92454524]
[1735657303801,20.0,198.12,198.04,27.94824524]
[1735657304002,23.776884,198.19,198.04,165.54824524]
[1735657304191,20.0,198.16,198.05,152.92454524]
[1735657304400,20.0,198.16,198.06,15.32454524]
[1735657304795,23.776884,198.19,198.07,15.32454524]
[1735657305009,6.2312,198.2,198.07,152.92454524]
[1735657305215,6.2312,198.2,198.09,15.32454524]
[1735657305421,6.2312,198.2,198.1,15.32454524]
[1735657305626,6.2312,198.2,198.08,152.92454524]
[1735657305906,6.2312,198.2,198.09,15.32454524]
[1735657306315,6.2312,198.2,198.08,152.92454524]
[1735657306512,6.2312,198.2,198.09,15.32454524]
[1735657307097,6.2312,198.2,198.08,165.54534524]
[1735657307298,1.5753,198.2,198.1,15.32454524]
[1735657308120,1.5753,198.2,198.13,15.32454524]
[1735657308419,1.5753,198.2,198.12,152.92454524]
[1735657309499,1.5753,198.2,198.12,137.6]
[1735657311730,1.5753,198.2,198.1,137.6]
[1735657312032,23.776884,198.19,198.1,137.6]
[1735657312215,20.0,198.16,198.1,137.6]
[1735657316002,23.776884,198.15,198.04,137.6]
[1735657316323,20.0,198.12,198.04,137.6]
[1735657316723,21.6173,198.12,198.04,137.6]
[1735657319021,1.6173,198.12,198.04,152.92454524]
[1735657319227,4.6559,198.16,198.07,15.32454524]
[1735657319228,1.6173,198.16,198.07,15.32454524]
[1735657319431,1.6173,198.16,198.1,15.32454524]
[1735657319618,7.86811766,198.19,198.1,15.32454524]
[1735657320214,7.86811766,198.19,198.09,15.32454524]
[1735657320414,6.2732,198.21,198.09,137.6]
[1735657320415,20.0,198.17,198.09,137.6]
[1735657320811,20.0,198.17,198.09,152.92454524]
[1735657321011,23.776884,198.2,198.09,152.92454524]
[1735657321227,20.0,198.17,198.09,137.6]
[1735657321619,6.2732,198.21,198.09,137.6]
[1735657321620,20.0,198.13,198.09,137.6]
[1735657321932,20.0,198.13,198.03,137.6]
[1735657322224,1.6173,198.12,198.04,15.32454524]
[1735657322814,21.6173,198.17,198.07,152.92454524]
[1735657323330,21.6173,198.17,198.07,137.6]
[1735657323909,21.6173,198.17,198.08,15.32454524]
[1735657324113,1.6173,198.17,198.08,15.32454524]
[1735657324513,1.6173,198.17,198.07,150.2213]
[1735657324914,1.6173,198.17,198.07,165.54584524]
[1735657325342,1.6173,198.17,198.08,15.32454524]
[1735657325517,1.6173,198.17,198.07,150.2213]
[1735657325518,1.6173,198.17,198.09,152.92454524]
[1735657325829,1.6173,198.17,198.1,15.32454524]
[1735657326035,20.0,198.2,198.1,15.32454524]
[1735657328528,20.0,198.2,198.09,165.54464524]
[1735657329115,20.0,198.2,198.1,15.32454524]
[1735657331130,6.2732,198.21,198.11,15.32454524]
[1735657331335,1.6173,198.21,198.12,15.32454524]
[1735657331626,1.6173,198.21,198.13,15.32454524]
[1735657331929,20.0,198.23,198.14,152.92454524]
[1735657332132,14.09381766,198.26,198.16,152.92454524]
[1735657332634,9.43791766,198.26,198.16,152.92454524]
[1735657332822,20.0,198.25,198.16,152.92454524]
[1735657333022,20.0,198.25,198.16,137.6]
[1735657333234,20.0,198.25,198.16,152.92454524]
[1735657333621,1.5698,198.26,198.16,152.92454524]
[1735657333938,1.5698,198.26,198.16,137.6]
[1735657334144,20.0,198.23,198.16,137.6]
[1735657335226,48.432784,198.22,198.12,137.6]
[1735657335426,23.776884,198.21,198.12,137.6]
[1735657336532,20.0,198.18,198.12,137.6]
[1735657336735,1.5698,198.17,198.08,137.6]
[1735657337437,1.5698,198.17,198.08,152.92454524]
[1735657337865,1.5698,198.17,198.08,137.6]
[1735657338547,1.5698,198.17,198.08,152.92454524]
[1735657338756,1.5698,198.17,198.08,137.6]
[1735657339266,1.5698,198.17,198.08,152.92454524]
[1735657339457,1.5698,198.17,198.09,15.32454524]
[1735657339948,20.0,198.21,198.11,152.92454524]
[1735657340424,20.0,198.21,198.11,137.6]
[1735657340827,6.2257,198.22,198.11,152.92454524]
[1735657341522,6.2257,198.22,198.11,137.6]
[1735657341738,1.5698,198.22,198.15,152.92454524]
[1735657342047,1.5698,198.22,198.16,15.32454524]
[1735657342526,14.08531766,198.27,198.17,152.92454524]
[1735657342733,14.08531766,198.27,198.18,15.32454524]
[1735657342734,6.2172,198.27,198.18,15.32454524]
[1735657342932,1.5613,198.27,198.18,15.32454524]
[1735657343133,21.5613,198.27,198.17,152.92454524]
[1735657343443,21.5613,198.27,198.17,137.6]
[1735657343649,1.5613,198.27,198.17,137.6]
[1735657348846,20.0,198.23,198.17,137.6]
[1735657349151,21.5613,198.19,198.12,137.6]
[1735657349348,21.5613,198.19,198.1,137.6]
[1735657350546,23.776884,198.18,198.07,137.6]
[1735657350732,20.0,198.15,198.07,137.6]
[1735657350938,20.0,198.15,198.05,137.6]
[1735657351358,20.0,198.15,198.06,15.32454524]
[1735657351535,1.5613,198.19,198.08,15.32454524]
[1735657351536,21.5613,198.19,198.08,15.32454524]
[1735657351731,21.5613,198.19,198.07,152.92454524]
[1735657351937,21.5613,198.19,198.12,15.32454524]
[1735657352744,7.86811766,198.22,198.15,15.32454524]
[1735657353062,1.5613,198.24,198.18,15.32454524]
[1735657353558,1.5613,198.24,198.17,15.32454524]
[1735657353940,7.86811766,198.25,198.18,15.32454524]
[1735657354135,7.86811766,198.25,198.2,15.32454524]
[1735657354344,62.94494128,198.3,198.2,15.32454524]
[1735657354345,7.86811766,198.32,198.24,162.0743424]
[1735657354557,7.86811766,198.32,198.26,24.4743424]
[1735657355533,20.0,198.37,198.26,162.0743424]
[1735657356139,9.41211766,198.41,198.26,162.0743424]
[1735657356335,9.41211766,198.41,198.26,137.6]
[1735657356538,43.776884,198.37,198.26,137.6]
[1735657359349,43.776884,198.37,198.21,137.6]
[1735657361338,43.776884,198.37,198.21,162.0743424]
[1735657361753,43.776884,198.37,198.22,24.4743424]
[1735657362148,43.776884,198.37,198.21,162.0743424]
[1735657362739,43.776884,198.37,198.21,137.6]
[1735657363386,20.0,198.32,198.18,162.0743424]
[1735657363657,20.0,198.28,198.18,137.6]
[1735657364136,20.0,198.28,198.18,162.0743424]
[1735657364338,20.0,198.28,198.18,137.6]
[1735657364539,20.0,198.24,198.17,162.0743424]
[1735657364748,20.0,198.24,198.17,137.6]
[1735657367768,20.0,198.24,198.17,162.0743424]
[1735657367953,20.0,198.24,198.18,24.4743424]
[1735657368355,20.0,198.32,198.19,24.4743424]
[1735657368561,20.0,198.28,198.17,162.0743424]
[1735657368773,20.0,198.28,198.18,24.4743424]
[1735657370972,20.0,198.28,198.17,162.0743424]
[1735657371643,20.0,198.28,198.17,137.6]
[1735657371644,23.776884,198.27,198.17,137.6]
[1735657371851,20.0,198.24,198.17,137.6]
[1735657376254,20.0,198.24,198.17,152.90977174]
[1735657377055,20.0,198.24,198.17,137.6]
[1735657377283,20.0,198.24,198.14,137.6]
[1735657377489,20.0,198.2,198.12,137.6]
[1735657378585,20.0,198.2,198.1,160.79367174]
[1735657378791,20.0,198.2,198.1,143.8949]
[1735657379269,23.776884,198.19,198.1,143.8949]
[1735657379461,20.0,198.16,198.1,143.8949]
[1735657380976,20.0,198.23,198.1,159.20467174]
[1735657381178,20.0,198.23,198.14,152.90977174]
[1735657381384,9.40871766,198.26,198.14,137.6]
[1735657381574,23.776884,198.25,198.14,137.6]
[1735657381963,23.776884,198.21,198.14,137.6]
[1735657384065,23.776884,198.21,198.14,137.6]
[1735657384676,20.0,198.18,198.11,137.6]
[1735657384870,20.0,198.18,198.1,143.8949]
[1735657385066,20.0,198.14,198.06,152.90977174]
[1735657385272,20.0,198.14,198.06,137.6]
[1735657385783,20.0,198.1,198.06,137.6]
[1735657386080,19.5,198.1,198.02,159.20467174]
[1735657386486,1.5406,198.17,198.02,159.20467174]
[1735657386686,1.5406,198.17,198.03,15.30977174]
[1735657387067,1.5406,198.17,198.02,159.20467174]
[1735657387976,20.0,198.11,198.02,159.20467174]
[1735657388182,20.0,198.11,198.02,143.8949]
[1735657389074,20.0,198.07,198.02,137.6]
[1735657389282,20.0,198.07,197.99,137.6]
[1735657389767,20.0,198.07,197.95,1.6304]
[1735657389768,45.339484,198.06,197.95,137.6]
[1735657390504,45.339484,198.06,197.95,152.90977174]
[1735657390700,1.5626,198.11,197.99,15.30977174]
[1735657390877,21.5626,198.11,197.99,15.30977174]
[1735657391080,20.0,198.07,197.98,152.90977174]
[1735657391288,1.5626,198.11,198.01,15.30977174]
[1735657391469,1.5626,198.11,198.02,15.30977174]
[1735657391674,9.43071766,198.16,198.03,152.90977174]
[1735657391874,20.0,198.13,198.03,137.6]
[1735657392089,20.0,198.09,198.0,137.6]
[1735657392495,23.776884,198.08,198.0,137.6]
[1735657392692,20.0,198.05,197.98,137.6]
[1735657392992,20.0,198.01,197.95,137.6]
[1735657393198,20.0,198.01,197.93,137.6]
[1735657393802,20.0,198.01,197.94,15.30977174]
[1735657393979,1.5626,198.06,197.94,152.90977174]
[1735657394292,20.0,198.03,197.94,152.90977174]
[1735657394489,20.0,198.02,197.94,152.90977174]
[1735657395573,21.5626,198.11,197.98,15.30977174]
[1735657395774,1.5626,198.11,197.99,15.30977174]
[1735657396071,1.5626,198.11,197.98,137.6]
[1735657396072,20.0,198.07,197.98,137.6]
[1735657396384,23.776884,198.06,197.98,137.6]
[1735657396588,20.0,198.03,197.94,137.6]
[1735657396768,20.0,197.99,197.94,137.6]
[1735657396968,20.0,197.99,197.9,137.6]
[1735657397188,20.0,197.95,197.87,143.9297]
[1735657397373,20.0,197.95,197.87,159.23947174]
[1735657398306,20.0,197.95,197.88,15.30977174]
[1735657398485,21.5626,198.02,197.89,152.90977174]
[1735657398886,21.5626,198.02,197.9,15.30977174]
[1735657399289,20.0,198.01,197.9,15.30977174]
[1735657399587,20.0,197.99,197.92,15.30977174]
[1735657399791,20.0,197.99,197.92,152.90977174]
[1735657400094,21.5626,198.02,197.93,15.30977174]
[1735657400389,1.5626,198.02,197.93,15.30977174]
[1735657400587,1.5626,198.02,197.92,152.90977174]
[1735657400783,23.776884,198.01,197.92,137.6]
[1735657400990,20.0,197.98,197.92,137.6]
[1735657401388,20.0,197.98,197.9,137.6]
[1735657402988,20.0,197.98,197.91,24.56915407]
[1735657403189,20.0,197.98,197.92,24.56915407]
[1735657403472,20.0,197.98,197.9,137.6]
[1735657404083,20.0,197.98,197.87,143.9297]
[1735657404280,20.0,197.94,197.87,143.9297]
[1735657404612,1.5626,198.02,197.88,24.56915407]
[1735657404811,20.0,197.98,197.88,24.56915407]
[1735657405101,20.0,197.98,197.87,143.9297]
[1735657405102,23.776884,197.97,197.87,143.9297]
[1735657405416,20.0,197.94,197.84,137.6]
[1735657405576,20.0,197.9,197.84,137.6]
[1735657406200,20.0,197.9,197.82,6.0655]
[1735657407679,4.6559,197.97,197.82,168.23465407]
[1735657408082,20.0,197.91,197.82,143.6655]
[1735657408274,20.0,197.87,197.8,137.6]
[1735657409291,20.0,197.83,197.77,137.6]
[1735657409682,20.0,197.83,197.77,162.16915407]
[1735657409895,20.0,197.83,197.77,137.6]
[1735657410200,23.776884,197.92,197.77,137.6]
[1735657410410,20.0,197.85,197.77,137.6]
[1735657410716,20.0,197.85,197.75,137.6]
[1735657411282,20.0,197.85,197.75,162.16915407]
[1735657411613,20.0,197.85,197.76,24.56915407]
[1735657412707,20.0,197.85,197.77,24.56915407]
[1735657412897,20.0,197.85,197.76,24.56915407]
[1735657415503,1.63,197.93,197.78,24.56915407]
[1735657415684,1.63,197.93,197.8,24.56915407]
[1735657416078,20.0,197.89,197.8,162.16915407]
[1735657416300,1.63,197.93,197.82,162.16915407]
[1735657416500,1.63,197.93,197.86,24.56915407]
[1735657417026,20.0,197.94,197.86,24.56915407]
[1735657418488,23.776884,197.96,197.87,24.56915407]
[1735657418887,23.776884,197.96,197.86,24.56915407]
[1735657419095,20.0,197.93,197.86,137.6]
[1735657419583,23.776884,197.96,197.86,162.16915407]
[1735657420310,1.63,197.97,197.87,24.56915407]
[1735657420606,1.63,197.97,197.91,162.16915407]
[1735657420821,23.776884,198.01,197.91,162.16915407]
[1735657420984,1.5317,198.07,197.94,24.56915407]
[1735657421187,1.5317,198.07,197.95,24.56915407]
[1735657421394,1.5317,198.07,197.96,24.56915407]
[1735657421719,20.0,198.03,197.97,24.56915407]
[1735657422025,23.776884,198.06,197.97,162.16915407]
[1735657422496,1.5317,198.12,197.98,24.56915407]
[1735657422697,1.5317,198.12,198.0,24.56915407]
[1735657422896,20.0,198.1,198.0,24.56915407]
[1735657423294,23.776884,198.11,198.0,24.56915407]
[1735657423500,1.5317,198.12,198.0,24.56915407]
[1735657423693,23.776884,198.09,197.98,162.16915407]
[1735657423905,20.0,198.06,197.98,137.6]
[1735657424707,20.0,198.04,197.96,162.16915407]
[1735657425310,20.0,198.1,197.98,162.16915407]
[1735657425493,20.0,198.1,198.0,24.56915407]
[1735657425694,1.5317,198.12,198.03,24.56915407]
[1735657425906,20.0,198.1,198.03,24.56915407]
[1735657426490,6.1876,198.17,198.04,162.16915407]
[1735657426689,6.1876,198.17,198.06,24.56915407]
[1735657426912,6.1876,198.17,198.06,162.16915407]
[1735657427495,23.776884,198.16,198.06,162.16915407]
[1735657427795,20.0,198.13,198.06,162.16915407]
[1735657428010,20.0,198.13,198.06,137.6]
[1735657428510,20.0,198.14,198.06,137.6]
[1735657428712,6.1876,198.17,198.06,137.6]
[1735657428713,23.776884,198.16,198.06,137.6]
[1735657429105,20.0,198.13,198.06,137.6]
[1735657432114,23.776884,198.08,197.99,162.16915407]
[1735657432313,20.0,198.05,197.99,137.6]
[1735657433317,20.0,198.05,197.97,144.0809]
[1735657433701,20.0,198.05,197.97,137.6]
[1735657434520,20.0,198.05,197.95,137.6]
[1735657434708,20.0,198.05,197.95,162.16915407]
[1735657434905,20.0,198.05,197.97,24.56915407]
[1735657435103,1.5317,198.08,197.99,162.16915407]
[1735657435309,1.5317,198.08,198.0,24.56915407]
[1735657435523,20.0,198.06,197.99,162.16915407]
[1735657435721,20.0,198.06,197.99,137.6]
[1735657436018,21.5547,198.13,197.99,162.16915407]
[1735657436220,1.5547,198.13,197.99,162.16915407]
[1735657436425,20.0,198.09,197.99,162.16915407]
[1735657436804,20.0,198.09,197.99,137.6]
[1735657437118,20.0,198.09,197.99,162.16915407]
[1735657437714,20.0,198.09,198.01,24.56915407]
[1735657437909,1.5547,198.13,198.0,24.56915407]
[1735657438117,20.0,198.09,197.99,162.16915407]
[1735657438310,20.0,198.09,198.0,24.56915407]
[1735657438519,20.0,198.09,198.02,162.16915407]
[1735657438703,1.5547,198.13,198.03,162.16915407]
[1735657438908,20.0,198.09,198.01,137.6]
[1735657440741,20.0,198.09,197.99,137.6]
[1735657442203,20.0,198.09,197.99,162.16915407]
[1735657442410,23.776884,198.12,198.01,24.56915407]
[1735657442949,1.5547,198.13,198.01,137.6]
[1735657442950,21.5547,198.13,198.01,137.6]
[1735657443227,20.0,198.09,197.98,162.16915407]
[1735657443823,20.0,198.09,197.98,137.6]
[1735657445017,20.0,198.09,197.96,24.56915407]
[1735657445321,23.776884,198.12,197.95,174.79815407]
[1735657445504,20.0,198.05,197.95,174.79815407]
[1735657445706,23.776884,198.04,197.95,162.16915407]
[1735657446029,23.776884,198.04,197.95,137.6]
[1735657446736,25.331584,198.04,197.93,137.6]
[1735657446938,20.0,198.01,197.93,137.6]
[1735657447411,23.776884,198.0,197.91,137.6]
[1735657448921,43.776884,198.02,197.89,144.1713]
[1735657449128,43.776884,198.02,197.87,162.16915407]
[1735657449424,4.6559,198.01,197.87,162.16915407]
[1735657449639,23.776884,198.0,197.87,162.16915407]
[1735657449928,23.776884,197.96,197.87,137.6]
[1735657452026,4.6559,198.01,197.85,162.16915407]
[1735657452233,4.6559,198.01,197.89,24.56915407]
[1735657452616,20.0,197.97,197.89,162.16915407]
[1735657453324,23.776884,198.0,197.89,137.6]